Cogmind - Beta 11.1 @@@ ROGUE MODE // 2022.10.21 @ 21:54:08 Player: Triffids Result: Self-destructed Performance ------------- Evolutions (2) 1000 Regions Visited (3) 600 Robots Destroyed (34) 170 Value Destroyed (1056) 1056 Prototype IDs (6) 120 Alien Tech Used (0) 0 Bonus (27) 27 TOTAL SCORE: 2973 Bonus ------- High Alert Combat Kills 27 Cogmind --------- Core Integrity 528/550 Matter 300/300 Energy 265/265 System Corruption 0% Temperature Cool (0) Movement Rolling (90) Location -8/Materials Parts ------- > --- POWER (1) -------- Improved Ion Engine > --- PROPULSION (4) --- Armored Wheel Armored Wheel Armored Wheel Armored Wheel > --- UTILITY (3) ------ Coolant Injector Medium Storage Unit Insulated Plating > --- WEAPON (3) ------- Advanced Beam Cannon Autogun Gauss Rifle > --- INVENTORY (10) --- Improved Ion Engine Machine Analyzer Sensor Array Signal Interpreter Targeting Computer Advanced Beam Cannon Advanced Beam Cannon Autogun Rocket Launcher Peak State ------------ > --- POWER ------------ Improved Ion Engine > --- PROPULSION ------- Armored Wheel Armored Wheel Armored Wheel Armored Wheel > --- UTILITY ---------- Coolant Injector Medium Storage Unit Insulated Plating > --- WEAPON ----------- Advanced Beam Cannon Autogun Gauss Rifle > --- INVENTORY -------- Improved Ion Engine Machine Analyzer Sensor Array Signal Interpreter Advanced Beam Cannon Advanced Beam Cannon Autogun Autogun Rocket Launcher [Rating: 28] Favorites ----------- Power Improved Ion Engine Engine Improved Ion Engine Propulsion Armored Wheel Leg Aluminum Leg Wheel Armored Wheel Utility Medium Storage Unit Device Hardlight Generator Storage Medium Storage Unit Processor Targeting Computer Hackware Hacking Suite Protection Insulated Plating Weapon Autogun Energy Gun Medium Laser Energy Cannon Advanced Beam Cannon Ballistic Gun Autogun Launcher Rocket Launcher Build | -11 -10 -9 -8 ------- Run | Scr Mat Mat Mat Slots Evolved 4 | . . 2 2 Power . | . . . . Propulsion 2 | . . 2 . Utility 1 | . . . 1 Weapon 1 | . . . 1 Parts Attached 32 | 6 12 4 10 Power 3 | 1 1 . 1 Engine 3 | 1 1 . 1 Core . | . . . . Reactor . | . . . . Propulsion 8 | 2 3 3 . Treads . | . . . . Leg 3 | 2 1 . . Wheel 5 | . 2 3 . Hover . | . . . . Flight . | . . . . Utility 8 | 1 2 . 5 Device 3 | . . . 3 Storage 2 | 1 1 . . Processor 1 | . 1 . . Hackware 1 | . . . 1 Protection 1 | . . . 1 Artifact . | . . . . Weapon 13 | 2 6 1 4 Energy Gun 1 | 1 . . . Energy Cannon 1 | . . 1 . Ballistic Gun 8 | 1 4 . 3 Ballistic Cannon . | . . . . Launcher 3 | . 2 . 1 Special Weapon . | . . . . Impact Weapon . | . . . . Slashing Weapon . | . . . . Piercing Weapon . | . . . . Special Melee Weapon . | . . . . Unidentified Prototypes . | . . . . Parts Lost 2 | . . . 2 Power . | . . . . Propulsion . | . . . . Utility 2 | . . . 2 Weapon . | . . . . Highest Loss Streak 2 | . . . 2 To Critical Strikes . | . . . . Average Slot Usage (%) 99 | . 97 100 100 Engine 11 | . 14 11 9 Leg 6 | . 19 . . Wheel 27 | . 8 44 36 Device 4 | . . . 9 Storage 11 | . 14 11 9 Processor 6 | . 12 11 . Hackware 1 | . . . 4 Protection 1 | . . . 3 Energy Cannon 5 | . . 5 9 Ballistic Gun 20 | . 25 16 17 Naked Turns . | . . . . Heaviest Build 33 | 12 23 24 33 Greatest Support 48 | 20 24 48 48 Greatest Overweight (x) 1 | 1 1 . . Average Overweight (x) . | . . . . Largest Inventory Capacity 10 | 8 10 10 10 Average Capacity 9 | 7 8 10 10 Most Carried 10 | 5 8 9 10 Average Carried 7 | 2 7 8 8 Final Capacity 10 | 8 10 10 10 Final Carried 9 | 2 8 9 9 Class Distribution -------------------- 55% | Mutant 39% | Tank 4% | Gunner Dominant Class ---------------- Mutant | -10/Materials Mutant | -9/Materials Tank | -8/Materials Resources | -11 -10 -9 -8 ----------- Run | Scr Mat Mat Mat Matter Collected 1170 | 190 299 288 393 Remotely . | . . . . Salvage Created 1285 | . 368 393 524 Parts 79 | . 33 22 24 Haulers Intercepted 5 | . 1 1 3 Recyclers Shooed . | . . . . Parts Field Recycled . | . . . . Retrieved Matter . | . . . . Parts Self-Destructed . | . . . . Prevented . | . . . . Kills | -11 -10 -9 -8 ------- Run | Scr Mat Mat Mat Combat Hostiles Destroyed 25 | . 10 7 8 Guns 13 | . 6 4 3 Cannons 6 | . . 3 3 AOE 6 | . 4 . 2 Classes Destroyed 8 | . 5 2 1 Builder 1 | . 1 . . Tunneler 1 | . 1 . . Hauler 5 | . 1 1 3 Watcher 2 | . . 1 1 Swarmer 3 | . 3 . . Grunt 15 | . 7 5 3 Sentry 5 | . . 2 3 Hunter 2 | . . . 2 Best Kill Streak 11 | . 11 4 4 Combat Bots Only 6 | . 6 3 4 Max Kills in Single Turn 2 | . 2 1 2 Gunslinging . | . . . . Exploded 2 | . 2 . 1 Melee . | . . . . Uniques/NPCs Destroyed . | . . . . Combat | -11 -10 -9 -8 -------- Run | Scr Mat Mat Mat Damage Taken 793 | . 147 229 417 Core 140 | . 59 59 22 Absorbed by Shields 60 | . . . 60 Core Remaining (%) 87 | 100 76 85 . Volleys Fired 79 | . 23 23 33 Largest 3 | . 2 2 3 Hottest 124 | . 56 91 124 Shots Fired 190 | . 45 46 99 Gun 132 | . 38 33 61 Cannon 46 | . . 13 33 Launcher 12 | . 7 . 5 Special . | . . . . Kinetic 132 | . 38 33 61 Thermal 46 | . . 13 33 Explosive 12 | . 7 . 5 Electromagnetic . | . . . . Robot Hit Streak 11 | . 4 11 5 Robot Miss Streak 7 | . 3 2 7 Penetration Max . | . . . . Secondary Targets . | . . . . Shots Hit Robots 96 | . 21 34 41 Core Hits 51 | . 17 14 20 Critical Kills 2 | . 1 . 1 Critical Parts Destroyed . | . . . . Critical Strikes 2 | . 1 . 1 Meltdown 1 | . . . 1 Destroy 1 | . 1 . . Melee Attacks . | . . . . Impact . | . . . . Slashing . | . . . . Piercing . | . . . . Sneak Attacks . | . . . . Combat Hostiles . | . . . . Follow-up Attacks . | . . . . Damage Inflicted 2156 | . 610 548 998 Guns 1001 | . 292 366 343 Cannons 552 | . . 182 370 Explosions 597 | . 318 . 279 Melee . | . . . . Ramming 6 | . . . 6 Kinetic 1001 | . 292 366 343 Thermal 552 | . . 182 370 Explosive 597 | . 318 . 279 Electromagnetic . | . . . . Impact . | . . . . Slashing . | . . . . Piercing . | . . . . Highest Corruption . | . . . . Average Corruption . | . . . . Corruption Purged . | . . . . Corruption Blocked . | . . . . Overload Shots . | . . . . Overflow Damage 19 | . 12 . 7 Projectiles 1 | . . . 1 Explosions 18 | . 12 . 6 Melee . | . . . . Knockbacks . | . . . . Impact . | . . . . Kinetic . | . . . . Secondary . | . . . . Self-Inflicted Damage 44 | . 41 . 3 Shots 2 | . 2 . . Rammed 1 | . . . 1 Targets Rammed 1 | . . . 1 Kicked . | . . . . Crushed . | . . . . Highest Temperature 302 | . 16 302 194 Average Temperature 80 | . 8 91 94 Received Heat Transfer 238 | . 24 93 121 Effects 2 | . . 2 . Interference 2 | . . 2 . Siege Activations . | . . . . Robots Corrupted . | . . . . Combat Hostiles . | . . . . Parts Fried . | . . . . Impact Corruptions . | . . . . Robots Melted 1 | . . . 1 Combat Hostiles . | . . . . Parts Melted 2 | . . . 2 Heat Transferred 999 | . . 333 666 Parts Sabotaged . | . . . . Parts Stolen . | . . . . Parts Stripped . | . . . . Power Chain Reactions . | . . . . Missiles Intercepted . | . . . . Alert | -11 -10 -9 -8 ------- Run | Scr Mat Mat Mat Peak Influence 481 | . 481 334 385 Initial 141 | . . 120 141 Average 237 | . 264 204 249 Maximum Alert Level 2 | . 2 1 1 Low Security (%) 37 | 100 38 52 26 Level 1 46 | . 14 47 73 Level 2 15 | . 47 . . Level 3 . | . . . . Level 4 . | . . . . Level 5 . | . . . . High Security . | . . . . Max Security . | . . . . Squads Dispatched 5 | . 2 1 2 Investigation . | . . . . Extermination . | . . . . Reinforcement 5 | . 2 1 2 Assault . | . . . . Garrison . | . . . . Intercept . | . . . . Searches Triggered . | . . . . Construction Impeded . | . . . . Haulers Reinforced . | . . . . Active Scanning Responses . | . . . . Cargo Convoy Interrupts . | . . . . Stealth | -11 -10 -9 -8 --------- Run | Scr Mat Mat Mat Distress Signals 5 | . 2 . 3 Communications Jammed . | . . . . Distress Signals . | . . . . Times Spotted 39 | . 13 9 17 Peak Tracking Total 5 | . 5 3 5 Tactical Retreats 1 | . 1 . . Traps | -11 -10 -9 -8 ------- Run | Scr Mat Mat Mat Traps Triggered 1 | . . 1 . Indirectly . | . . . . Trap Hack Attempts . | . . . . Triggered . | . . . . Disarmed 3 | . . . 3 Reprogrammed . | . . . . Reused . | . . . . Traps Extracted . | . . . . Installed . | . . . . Triggered . | . . . . Machines | -11 -10 -9 -8 ---------- Run | Scr Mat Mat Mat Machines Disabled 5 | . 3 . 2 Max in Single Turn 1 | . 1 . 1 Machines Sabotaged . | . . . . Garrisons Compromised . | . . . . Overloaded Fab Kills . | . . . . Hacking | -11 -10 -9 -8 --------- Run | Scr Mat Mat Mat Machines Accessed 7 | . 2 2 3 Terminals 6 | . 2 1 3 Fabricators . | . . . . Repair Stations . | . . . . Recycling Units . | . . . . Scanalyzers 1 | . . 1 . Garrison Access . | . . . . Total Hacks 25 | . 7 4 14 Successful 16 | . 3 3 10 Failed 9 | . 4 1 4 Catastrophic 2 | . 2 . . Database Lockouts . | . . . . Manual 12 | . 6 1 5 Terminals 23 | . 7 2 14 Fabricators . | . . . . Repair Stations . | . . . . Recycling Units . | . . . . Scanalyzers 2 | . . 2 . Garrison Access . | . . . . Terminal Hacks 11 | . 2 1 8 Robot Analysis 1 | . . . 1 Prototype ID Bank 4 | . 1 1 2 Terminal Index 2 | . 1 . 1 Locate Traps 1 | . . . 1 Disarm Traps 1 | . . . 1 Registered Components 1 | . . . 1 Zone Layout 1 | . . . 1 Fabricator Hacks . | . . . . Repair Station Hacks . | . . . . Recycling Unit Hacks . | . . . . Scanalyzer 2 | . . 2 . Insert Component 1 | . . 1 . Analyze 1 | . . 1 . Garrison Access Hacks . | . . . . Unauthorized Hacks 3 | . 1 . 2 Terminals 3 | . 1 . 2 Botnet 3 | . 1 . 2 Fabricators . | . . . . Repair Stations . | . . . . Recycling Units . | . . . . Scanalyzers . | . . . . Garrison Access . | . . . . Data Cores Recovered . | . . . . Used . | . . . . Hacking Detections 7 | . 2 2 3 Full Trace Events . | . . . . Feedback Events . | . . . . Feedback Blocked . | . . . . Robot Schematics Acquired . | . . . . Robots Built . | . . . . Authchips . | . . . . Time . | . . . . Total Robot Build Rating . | . . . . Part Schematics Acquired 1 | . . 1 . Parts Built . | . . . . Authchips . | . . . . Time . | . . . . Total Part Build Rating . | . . . . Parts Repaired . | . . . . Time . | . . . . Parts Recycled . | . . . . Recycled Matter . | . . . . Retrieved Matter . | . . . . Retrieved Components . | . . . . Parts Scanalyzed 1 | . . 1 . Part Schematics Acquired 1 | . . 1 . Parts Damaged . | . . . . Bothacking | -11 -10 -9 -8 ------------ Run | Scr Mat Mat Mat Used RIF Installer . | . . . . Robots Hacked . | . . . . Non-combat . | . . . . Combat . | . . . . Robot Hacks Applied . | . . . . Relay Couplers Released . | . . . . Fabnet Peak Effective % . | . . . . Robots Rewired . | . . . . Allies Hacked . | . . . . Hacks Repelled . | . . . . Allies | -11 -10 -9 -8 -------- Run | Scr Mat Mat Mat Total Allies . | . . . . Largest Group . | . . . . Highest-Rated Group . | . . . . Highest-Rated Ally . | . . . . Total Orders . | . . . . Ally Attacks . | . . . . Total Damage . | . . . . Kills . | . . . . Allies Corrupted . | . . . . Allies Melted . | . . . . Intel | -11 -10 -9 -8 ------- Run | Scr Mat Mat Mat Robot Analysis Total 1 | . . . 1 Derelict Logs Recovered . | . . . . Drone Launches . | . . . . Drone Recoveries . | . . . . Exploration | -11 -10 -9 -8 ------------- Run | Scr Mat Mat Mat Turns Passed 1235 | 42 417 233 543 Spaces Moved 975 | 32 302 176 465 Core 16 | 16 . . . Treads . | . . . . Legs 194 | 16 178 . . Wheels 765 | . 124 176 465 Hover . | . . . . Flight . | . . . . Fastest Speed 50 | 50 90 90 90 Average Speed 95 | 95 107 90 90 Slowest Speed 120 | 120 120 90 90 Overloaded Moves . | . . . . Propulsion Burnouts . | . . . . Robots Hopped . | . . . . Cave-ins Triggered . | . . . . Exploration Rate (%) 29 | 3 50 20 43 Regions Visited 3 Branch Regions . Pre-discovered Areas . | . . . . Known Exits Taken . | . . . . Unknown Exits Taken 3 | 1 1 1 . Scrap Searched . | . . . . Spaces Dug . | . . . . Terrain Destroyed 84 | . 55 . 29 Melee . | . . . . Projectile . | . . . . AOE 84 | . 55 . 29 Terrain Rammed . | . . . . Walls Destroyed . | . . . . Machines Disabled . | . . . . Actions | -11 -10 -9 -8 --------- Run | Scr Mat Mat Mat Total 1138 | 42 359 212 525 Wait 8 | . 1 4 3 Move 972 | 31 301 175 465 Hop . | . . . . Pick Up 27 | 5 11 3 8 Fast Attach 7 | 3 3 1 . Attach 11 | 3 . 3 5 Detach 3 | . . 2 1 Swap 14 | . 9 . 5 Drop 16 | . 11 1 4 Fire 79 | . 23 23 33 Melee . | . . . . Ram 1 | . . . 1 Kick . | . . . . Crush . | . . . . Escape Stasis . | . . . . Rewire . | . . . . Trap . | . . . . Miscellaneous . | . . . . Route ------- -11/Scrapyard -10/Materials (discovered 2 exits: *Mat / [*Min]) -9/Materials (discovered 2 exits: *Mat / [*Sto]) -8/Materials History --------- Turn | Location | Event 11 | -11/Scrapyard | Discovered new exit (range 15) 43 | -11/Scrapyard | Entered Materials 258 | -10/Materials | Discovered new exit (range 12) 304 | -10/Materials | Build established: Mutant 441 | -10/Materials | Discovered new exit (range 12) 460 | -10/Materials | Entered another Materials area 460 | -9/Materials | Evolved 2 slots: Propulsion x2 583 | -9/Materials | Discovered new exit (range 16) 678 | -9/Materials | Discovered new exit (range 15) 693 | -9/Materials | Entered another Materials area 693 | -8/Materials | Evolved 2 slots: Utility x1, Weapon x1 1050 | -8/Materials | Build established: Tank 1236 | -8/Materials | Self-destructed Last Messages --------------- 01136_ Slug penetrates Wall. 01148_ Acquired 32 matter. 01154_ K-01 Serf collects debris. 01164_ Slammed into K-01 Serf. 01170_ O-24 Administrator: "IFF HANDSHAKE FAILED. SECURING TERMINAL." 01172_ K-01 Serf cleans the Terminal. 01177_ ALERT: Hostiles spotted, dispatching reinforcements to Terminal M006. 01181_ W-25 Informer sends out distress signal. 01186_ Slug penetrates W-25 Informer. 01194_ K-01 Serf cleans the Atomic Centrifuge. 01194_ Y-45 Defender destroyed. 01194_ Slug penetrates Atomic Centrifuge. 01194_ Atomic Centrifuge disabled. 01197_ Acquired 32 matter. 01197_ K-01 Serf collects debris. 01200_ Slug penetrates Wall. 01204_ Acquired 8 matter. 01205_ K-01 Serf cleans the Atomic Centrifuge. 01209_ K-01 Serf collects debris. Map ----- +----------------------------------------------------+ | # !! #?????## """ # + #? | | # !! #??????# """ # # #? | | # ! #??????# """" # ! # !#? | | # #??????# ## ######## ## ### | | #####+############ ####??????# ## # | | #?????????############ # | | #????????????????????# + | | #????????????????????# # | | #################+####??????????########### ### | | #?????????????# #??????????# ## ##? | | #?????????????# #??????????# # ## | | #?????????????# #??????????# = # "" | | #?????????????# #??????????# "" + T | | #?????????????# "T" #??????????# """ # | | #?????????????# """ !#??????????# S" # % ## | | #?????????????########??????????# """ ## ### | | #???????????????????????????????# """ ## # | | #???????????????????????????????# ## # | | #???????????????????????????????########### + | | ##?????????????????????????????????????????# # | | ???????????????????????????????????????????# ### | | ??????????????????????????????????????????## %!##? | | ???????????????????########????????######## = #? | | ???????????????????# #????????# #? | | ???????????????????# """ ########## #? | | ???????????????????#[ """@; #? | | ???????????????????# """ ###########+##### #? | | ???????????????????# #???# !%! #######? | | ???????????????????#! ! #???# """[""" ! #??????? | | ???????????????????########???# "" """ #??????? | | ??????????????????????????????# " " """ #??????? | | ??????????????????????????????# ] #??????? | | ?????????????????????????????## / #??????? | | ?????????????????????????????# """T""" #??????? | | ?????????????????????????????##############??????? | | | | | | | | | | | | | | | | | | | | | | | | | | | | | | | +----------------------------------------------------+ Best States ------------- Heat Dissipation 31 Coolant Potential 65 Energy Generation 12 Energy Capacity 265 Matter Stores 300 Matter Capacity 300 Sight Range 16 Terrain Scan Density 10 Armor Coverage 150 Resistance: EM 15 Evasion (%) 55 Targeting Accuracy 5 Offensive Hacking 10 Item Schematics ----------------- Arm. Wheel | -9/Materials | Scanalyzed Robot Schematics ------------------ None Fabricated ------------ Nothing Alien Tech Used ----------------- None Achievements -------------- None Challenges ------------ None Game ------ Seed AdvancedTeslaExtractor Manual? 0 Play Time 00:15:51 Cumulative 165.5 hours Start 2022.10.21 @ 17:30:44 End 2022.10.21 @ 21:54:08 Sessions 5 Manual Loads 0 Difficulty Rogue Special Mode None Game No. 231 Rogue 231 Adventurer 0 Explorer 0 Win Type - Total 0 Types 0/0/0/0/0/0/0/0/0 Lore% 45 Gallery% 53 Achievement% 35 Wizard Run 0 Options --------- ASCII 0 Keyboard 1 Movement Vi Keybinds 0 Fullscreen 0 Font 20/SmallcapsGlow Map View 76x50 Tactical HUD 1 Map Filters NONE Filters NONE Steam 1 RUN: c35db9d4-d02b-47b2-b8b3-4fd428d509ca